bitfinex-derivatives/quotes_BNBF0:USTF0_20250413
["timestamp","ask_amount","ask_price","bid_price","bid_amount"]
[1744583818299,0.58799869,582.63,582.4,0.72]
[1744583818500,0.58799869,582.62,582.4,0.72]
[1744583818700,0.58799869,582.61,582.4,0.72]
[1744583818995,0.58799869,582.6,582.4,0.72]
[1744583819193,0.58799869,582.59,582.4,0.72]
[1744583819396,0.58799869,582.58,582.4,0.72]
[1744583819598,0.58799869,582.57,582.4,0.72]
[1744583819799,0.58799869,582.56,582.4,0.72]
[1744583819995,0.58799869,582.55,582.4,0.72]
[1744583820199,0.58799869,582.54,582.4,0.72]
[1744583820401,0.58799869,582.53,582.4,0.72]
[1744583820595,0.58799869,582.52,582.4,0.72]
[1744583820799,0.216,582.8,582.4,0.72]
[1744583821007,0.58793792,582.79,582.4,0.72]
[1744583821302,0.58793792,582.78,582.4,0.72]
[1744583821498,0.58793792,582.77,582.4,0.72]
[1744583821697,0.58793792,582.76,582.4,0.72]
[1744583821901,0.58787409,582.75,582.4,0.72]
[1744583822103,0.58787409,582.74,582.4,0.72]
[1744583822302,0.216,582.8,582.4,0.72]
[1744583822303,0.58787409,582.73,582.4,0.72]
[1744583822501,0.58787409,582.72,582.4,0.72]
[1744583822701,0.58787409,582.71,582.4,0.72]
[1744583822898,0.58787409,582.7,582.4,0.72]
[1744583823197,0.58787409,582.69,582.4,0.72]
[1744583823398,0.216,582.8,582.4,0.72]
[1744583823399,0.58787409,582.68,582.4,0.72]
[1744583823601,0.58787409,582.67,582.4,0.72]
[1744583823803,0.58787409,582.66,582.4,0.72]
[1744583824001,0.58787409,582.65,582.4,0.72]
[1744583824203,0.58787409,582.64,582.4,0.72]
[1744583824402,0.58787409,582.63,582.4,0.72]
[1744583824607,0.58787409,582.62,582.4,0.72]
[1744583824804,0.216,582.8,582.4,0.72]
[1744583825006,0.58785072,582.79,582.4,0.72]
[1744583825207,0.58785072,582.78,582.4,0.72]
[1744583825506,0.58785072,582.77,582.4,0.72]
[1744583825802,0.58785072,582.76,582.4,0.72]
[1744583826006,0.58785072,582.75,582.4,0.72]
[1744583826202,0.58785072,582.74,582.4,0.72]
[1744583826407,0.58785072,582.73,582.4,0.72]
[1744583826704,0.58785072,582.72,582.4,0.72]
[1744583826907,0.58785072,582.71,582.4,0.72]
[1744583827105,0.58785072,582.7,582.4,0.72]
[1744583827303,0.58785072,582.69,582.4,0.72]
[1744583827505,0.216,582.8,582.4,0.72]
[1744583827506,0.58785072,582.68,582.4,0.72]
[1744583827808,0.58785072,582.67,582.4,0.72]
[1744583828109,0.58785072,582.66,582.4,0.72]
[1744583828302,0.58785072,582.65,582.4,0.72]
[1744583828502,0.58785072,582.64,582.4,0.72]
[1744583828706,0.58785072,582.63,582.4,0.72]
[1744583828903,0.216,582.8,582.4,0.72]
[1744583829107,0.58780579,582.79,582.4,0.72]
[1744583829309,0.58780579,582.78,582.4,0.72]
[1744583829504,0.58780579,582.77,582.4,0.72]
[1744583829703,0.58780579,582.76,582.4,0.72]
[1744583830007,0.58780579,582.75,582.4,0.72]
[1744583830205,0.58780579,582.74,582.4,0.72]
[1744583830403,0.58780579,582.73,582.4,0.72]
[1744583830702,0.58780579,582.72,582.4,0.72]
[1744583830908,0.58780579,582.71,582.4,0.72]
[1744583831110,0.58780579,582.7,582.4,0.72]
[1744583831308,0.58780579,582.69,582.4,0.72]
[1744583831508,0.58780579,582.68,582.4,0.72]
[1744583831712,0.58780579,582.67,582.4,0.72]
[1744583831915,0.58780579,582.66,582.4,0.72]
[1744583832214,0.58780579,582.65,582.4,0.72]
[1744583832415,0.58780579,582.64,582.4,0.72]
[1744583832617,0.58780579,582.63,582.4,0.72]
[1744583832814,0.216,582.8,582.4,0.72]
[1744583833012,0.58780396,582.79,582.4,0.72]
[1744583833212,0.58780396,582.78,582.4,1.192]
[1744583833411,0.58780396,582.77,582.4,1.192]
[1744583833611,0.58780396,582.76,582.4,1.192]
[1744583833918,0.58780396,582.75,582.4,1.192]
[1744583834120,0.58780396,582.74,582.4,1.192]
[1744583834418,0.58780396,582.73,582.4,1.192]
[1744583834615,0.58780396,582.72,582.4,1.192]
[1744583834814,0.58780396,582.71,582.4,1.192]
[1744583835012,0.58780396,582.7,582.4,1.192]
[1744583835213,0.58780396,582.69,582.4,1.192]
[1744583835413,0.58780396,582.68,582.4,1.192]
[1744583835712,0.58780396,582.67,582.4,1.192]
[1744583835915,0.58792426,582.66,582.4,1.192]
[1744583836117,0.58792426,582.65,582.4,1.192]
[1744583836416,0.58792426,582.64,582.4,1.192]
[1744583836618,0.58792426,582.63,582.4,1.192]
[1744583836818,0.58792426,582.62,582.4,1.192]
[1744583837118,0.58792426,582.61,582.4,1.192]
[1744583837318,0.58792426,582.6,582.4,1.192]
[1744583837517,0.216,582.8,582.4,1.192]
[1744583837714,0.58799837,582.79,582.4,1.192]
[1744583837913,0.58799837,582.78,582.4,1.192]
[1744583838113,0.58799837,582.77,582.4,1.192]
[1744583838316,0.58799837,582.76,582.4,1.192]
[1744583838519,0.58799837,582.75,582.4,1.192]
[1744583838718,0.58799837,582.74,582.4,1.192]
[1744583838915,0.58799837,582.73,582.4,1.192]
[1744583839119,0.58799837,582.72,582.4,1.192]
[1744583839314,0.58799837,582.71,582.4,0.472]
[1744583839517,0.58799837,582.7,582.4,0.472]
[1744583839718,0.58799837,582.69,582.4,0.472]
[1744583839918,0.58799837,582.68,582.4,0.472]
[1744583840115,0.58799837,582.67,582.4,0.472]
[1744583840315,0.58799837,582.66,582.4,0.472]
[1744583840519,0.58799837,582.65,582.4,0.472]
[1744583840815,0.58799837,582.64,582.4,0.472]
[1744583841015,0.58799837,582.63,582.4,0.472]
[1744583841318,0.58799837,582.62,582.4,0.472]
[1744583841514,0.58799837,582.61,582.4,0.472]
[1744583841715,0.58799837,582.6,582.4,0.472]
[1744583841918,0.58799837,582.59,582.4,0.472]
[1744583842118,0.58799837,582.58,582.4,0.472]
[1744583842318,0.216,582.8,582.4,0.472]
[1744583842519,0.58805241,582.79,582.4,0.472]
[1744583842718,0.58805241,582.78,582.4,0.472]
[1744583842915,0.216,582.8,582.4,0.472]
[1744583843120,0.58805185,582.79,582.4,0.472]
[1744583843417,0.58805185,582.78,582.4,0.472]
[1744583843615,0.58805185,582.77,582.4,0.472]
[1744583843818,0.58805185,582.76,582.4,0.472]
[1744583844018,0.58805185,582.75,582.4,0.472]
[1744583844217,0.58805185,582.74,582.4,0.472]
[1744583844417,0.58805185,582.73,582.4,0.472]
[1744583844617,0.58805185,582.72,582.4,0.472]
[1744583844819,0.58805185,582.71,582.4,0.472]
[1744583845021,0.58805185,582.7,582.4,0.472]
[1744583845221,0.58805185,582.69,582.4,0.472]
[1744583845422,0.58805185,582.68,582.4,0.472]
[1744583845622,0.58805185,582.67,582.4,0.472]
[1744583845823,0.58805185,582.66,582.4,0.472]
[1744583846025,0.58805185,582.65,582.4,0.472]
[1744583846223,0.58805185,582.64,582.39,0.953]
[1744583846422,0.58805185,582.63,582.39,0.953]
[1744583846620,0.58803086,582.62,582.39,0.953]
[1744583846824,0.58803086,582.61,582.39,0.953]
[1744583847026,0.58803086,582.6,582.39,0.953]
[1744583847221,0.58803086,582.59,582.39,0.953]
[1744583847425,0.58803086,582.58,582.39,0.953]
[1744583847627,0.58803086,582.57,582.39,0.953]
[1744583847826,0.58803086,582.56,582.39,0.953]
[1744583848022,0.58803086,582.55,582.39,0.953]
[1744583848225,0.58803086,582.54,582.39,0.953]
[1744583848425,0.58803086,582.53,582.39,0.953]
[1744583848628,0.58803086,582.52,582.39,0.953]
[1744583848929,0.58803086,582.51,582.39,0.953]
[1744583849123,0.34298845,583.11,582.39,0.953]
[1744583849323,0.90177376,583.1,582.39,0.953]
[1744583849527,0.90177376,583.09,582.39,0.953]
[1744583849722,0.90177376,583.08,582.4,0.552]
[1744583849930,0.90177376,583.07,582.4,0.552]
[1744583850124,0.216,583.1,582.4,0.552]
[1744583850125,0.90177376,583.06,582.4,0.552]
[1744583850329,0.216,583.1,582.4,0.552]
[1744583850330,0.90177376,583.05,582.4,0.552]
[1744583850530,0.90177376,583.04,582.4,0.552]
[1744583850829,0.90177376,583.03,582.4,0.552]
[1744583851029,0.90177376,583.02,582.4,0.552]
[1744583851231,0.58789822,583.01,582.4,0.552]
[1744583851430,0.58789822,583.0,582.4,0.552]
[1744583851630,0.58789822,582.99,582.4,0.552]
[1744583851831,0.58789822,582.98,582.4,0.552]
[1744583852032,0.58789822,582.97,582.4,0.552]
[1744583852330,0.58789822,582.96,582.4,0.552]
[1744583852530,0.58789822,582.95,582.4,0.552]
[1744583852727,0.58789822,582.94,582.4,0.552]
[1744583852925,0.58789822,582.93,582.4,0.552]
[1744583853125,0.58789822,582.92,582.4,0.552]
[1744583853432,0.58789822,582.91,582.4,1.155]
[1744583853633,0.58789822,582.9,582.4,1.155]
[1744583853833,0.58789822,582.89,582.4,1.155]
[1744583854132,0.58789822,582.88,582.4,1.155]
[1744583854327,0.58789822,582.87,582.4,1.155]
[1744583854528,0.58789822,582.86,582.4,1.155]
[1744583854728,0.58789822,582.85,582.4,1.155]
[1744583854931,0.58789822,582.84,582.4,1.155]
[1744583855132,0.58789822,582.83,582.4,1.155]
[1744583855329,0.58789822,582.82,582.4,1.155]
[1744583855628,0.58789822,582.81,582.4,1.155]
[1744583855933,0.216,583.1,582.4,1.155]
[1744583855934,0.58789822,582.8,582.4,1.155]
[1744583856130,0.58789822,582.79,582.4,1.155]
[1744583856434,0.58789822,582.78,582.4,1.155]
[1744583856634,0.58789822,582.77,582.4,1.155]
[1744583856832,0.58789822,582.76,582.4,1.155]
[1744583857032,0.58789822,582.75,582.4,1.155]
[1744583857229,0.58789822,582.74,582.4,1.155]
[1744583857434,0.58789822,582.73,582.4,1.155]
[1744583857636,0.58789822,582.72,582.4,1.155]
[1744583857831,0.58789822,582.71,582.4,1.155]
[1744583858035,0.58789822,582.7,582.4,1.155]
[1744583858234,0.58789822,582.69,582.4,1.155]
[1744583858437,0.58789822,582.68,582.4,1.155]
[1744583858638,0.58789822,582.67,582.4,1.155]
[1744583858938,0.58774872,582.66,582.4,1.155]
[1744583859139,0.58774872,582.65,582.4,1.155]
[1744583859440,0.216,583.1,582.4,1.155]
[1744583859638,0.58774371,583.09,582.4,1.155]
[1744583859837,0.58774371,583.08,582.4,1.155]
[1744583860037,0.58774371,583.07,582.4,1.155]
[1744583860233,0.58774371,583.06,582.4,1.155]
[1744583860434,0.58774371,583.05,582.4,1.155]
[1744583860632,0.58774371,583.04,582.4,1.155]
[1744583860837,0.58774371,583.03,582.4,1.155]
[1744583861033,0.58774371,583.02,582.4,1.155]
[1744583861235,0.90160023,583.01,582.4,1.155]
[1744583861436,0.90160023,583.0,582.4,1.155]
[1744583861636,0.58774371,582.99,582.4,1.155]
[1744583861938,0.58774371,582.98,582.4,1.155]
[1744583862138,0.58774371,582.97,582.4,1.155]
[1744583862331,0.58774371,582.96,582.4,1.155]
[1744583862536,0.58774371,582.95,582.4,1.155]
[1744583862736,0.58774371,582.94,582.4,1.155]
[1744583862938,0.58774371,582.93,582.4,1.155]
[1744583863237,0.58774371,582.92,582.4,1.155]
[1744583863438,0.58774371,582.91,582.4,1.155]
[1744583863636,0.58774371,582.9,582.4,1.155]
[1744583863839,0.58774371,582.89,582.4,1.155]
[1744583864140,0.58774371,582.88,582.4,1.155]
[1744583864334,0.58774371,582.87,582.4,1.155]
[1744583864533,0.58774371,582.86,582.4,1.155]
[1744583864737,0.58774371,582.85,582.4,1.596]
[1744583864939,0.58774371,582.84,582.4,1.596]
[1744583865139,0.58774371,582.83,582.4,1.596]
[1744583865341,0.58774371,582.82,582.4,1.596]
[1744583865541,0.58774371,582.81,582.4,1.596]
[1744583865735,0.58774371,582.8,582.4,1.596]
[1744583865939,0.58774371,582.79,582.4,1.596]
[1744583866139,0.58774371,582.78,582.4,1.596]
[1744583866340,0.58774371,582.77,582.4,0.441]
[1744583866542,0.58774371,582.76,582.4,0.441]
[1744583866743,0.58774371,582.75,582.4,0.441]
[1744583866938,0.58774371,582.74,582.4,0.441]
[1744583867141,0.58774371,582.73,582.4,0.441]
[1744583867341,0.58774371,582.72,582.4,0.441]
[1744583867539,0.58774371,582.71,582.4,0.441]
[1744583867741,0.58774371,582.7,582.4,0.441]
[1744583867942,0.58774371,582.69,582.4,0.441]
[1744583868144,0.58774371,582.68,582.4,0.441]
[1744583868344,0.58774371,582.67,582.4,0.441]
[1744583868638,0.58774371,582.66,582.4,0.441]
[1744583868844,0.58774371,582.65,582.4,0.441]
[1744583869142,0.58774371,582.64,582.4,0.441]
[1744583869343,0.58774371,582.63,582.4,0.441]
[1744583869544,0.58774371,582.62,582.4,0.441]
[1744583869738,0.216,583.1,582.4,0.441]
[1744583869739,0.58774371,582.61,582.4,0.441]
[1744583869937,0.58774371,582.6,582.4,0.441]
[1744583870140,0.58774371,582.59,582.4,0.441]
[1744583870338,0.58774371,582.58,582.4,0.441]
[1744583870544,0.58774371,582.57,582.4,0.441]
[1744583870743,0.58774371,582.56,582.4,0.441]
[1744583870944,0.58774371,582.55,582.4,0.441]
[1744583871145,0.58774371,582.54,582.4,0.441]
[1744583871346,0.58774371,582.53,582.4,0.441]
[1744583871546,0.58774371,582.52,582.4,0.441]
[1744583871747,0.58774371,582.51,582.4,0.441]
[1744583872047,0.58774371,582.5,582.4,0.441]
[1744583872247,0.58774371,582.49,582.4,0.441]
[1744583872447,0.58774371,582.48,582.4,0.441]
[1744583872645,0.58774371,582.47,582.4,0.441]
[1744583872844,0.58774371,582.46,582.4,0.441]
[1744583873047,0.58774371,582.45,582.4,0.441]
[1744583873249,0.216,583.1,582.4,0.441]
[1744583873442,0.90138986,583.09,582.4,0.441]
[1744583873647,0.55899434,583.1,582.4,0.942]
[1744583873648,0.58747984,583.08,582.4,0.942]
[1744583873946,0.90139854,583.07,582.4,0.942]
[1744583874144,0.90139854,583.06,582.4,0.942]
[1744583874343,0.90139854,583.05,582.4,0.942]
[1744583874648,0.90139854,583.04,582.4,0.942]
[1744583874848,0.90139854,583.03,582.4,0.942]
[1744583875046,0.90139854,583.02,582.4,0.942]
[1744583875246,0.90132065,583.01,582.4,0.942]
[1744583875447,0.90132065,583.0,582.4,0.942]
[1744583875643,0.90132065,582.99,582.4,0.942]
[1744583875947,0.90132065,582.98,582.4,0.942]
[1744583876145,0.90132065,582.97,582.4,0.942]
[1744583876347,0.58740195,582.96,582.4,0.942]
[1744583876545,0.90132065,582.95,582.4,0.942]
[1744583876848,0.90132065,582.94,582.4,0.942]
[1744583877044,0.9012116,582.93,582.4,0.942]
[1744583877247,0.9012116,582.92,582.4,0.942]
[1744583877443,0.9012116,582.91,582.4,0.942]
[1744583877649,0.9012116,582.9,582.4,0.942]
[1744583877846,0.9012116,582.89,582.4,0.942]
[1744583878046,0.9012116,582.88,582.4,0.942]
[1744583878242,0.9012116,582.87,582.4,0.942]
[1744583878447,0.9012116,582.86,582.4,0.942]
[1744583878646,0.9012116,582.85,582.4,0.942]
[1744583878848,0.5872929,582.84,582.4,0.942]
[1744583879048,0.5872929,582.83,582.4,0.942]
[1744583879343,0.5872929,582.82,582.4,0.942]
[1744583879547,0.5872929,582.81,582.4,0.942]
[1744583879744,0.216,582.91,582.4,0.942]
[1744583879745,0.5872929,582.8,582.4,0.942]
[1744583879943,0.5872929,582.79,582.4,0.942]
[1744583880247,0.5872929,582.78,582.4,0.942]
[1744583880549,0.5872929,582.77,582.4,0.942]
[1744583880744,0.5872929,582.76,582.4,0.942]
[1744583881044,0.5872929,582.75,582.4,0.942]
[1744583881348,0.5872929,582.74,582.4,0.942]
[1744583881645,0.5872929,582.73,582.4,0.942]
[1744583881851,0.5872929,582.72,582.4,0.942]
[1744583882047,0.5872929,582.71,582.4,0.942]
[1744583882344,0.5872929,582.7,582.4,0.942]
[1744583882546,0.5872929,582.69,582.4,0.942]
[1744583882746,0.5872929,582.68,582.4,0.942]
[1744583882944,0.5872929,582.67,582.4,0.942]
[1744583883150,0.5872929,582.66,582.4,0.942]
[1744583883450,0.5872929,582.65,582.4,0.942]
[1744583883647,0.5872929,582.64,582.4,0.942]
[1744583883845,0.5872929,582.63,582.4,0.942]
[1744583884045,0.5872929,582.62,582.4,0.942]
[1744583884243,0.5872929,582.61,582.4,0.942]
[1744583884447,0.5872929,582.6,582.4,0.942]
[1744583884650,0.5872929,582.59,582.4,0.942]
[1744583884845,0.5872929,582.58,582.4,0.942]
[1744583885052,0.5872929,582.57,582.4,0.942]
[1744583885245,0.5872929,582.56,582.4,0.942]
[1744583885446,0.5872929,582.55,582.4,0.942]
[1744583885646,0.5872929,582.54,582.4,0.942]
[1744583885846,0.5872929,582.53,582.4,0.942]
[1744583886045,0.5872929,582.52,582.4,0.942]
[1744583886245,0.5872929,582.51,582.4,0.942]
[1744583886451,0.5872929,582.5,582.4,0.942]
[1744583886652,0.5872929,582.49,582.4,0.942]
[1744583886846,0.5872929,582.48,582.4,0.942]
[1744583887047,0.58675651,582.47,582.4,0.942]
[1744583887251,0.58675651,582.46,582.4,0.942]
[1744583887448,0.216,582.91,582.4,0.942]
[1744583887652,0.58676497,582.9,582.4,0.942]
[1744583887852,0.58676497,582.89,582.4,0.942]
[1744583888052,0.58676497,582.88,582.4,0.942]
[1744583888253,0.58676497,582.87,582.4,0.942]
[1744583888453,0.58676497,582.86,582.4,0.942]
[1744583888654,0.58674484,582.85,582.4,1.395]
[1744583888954,0.58674484,582.84,582.4,1.395]
[1744583889154,0.58674484,582.83,582.4,1.395]
[1744583889354,0.58674484,582.82,582.4,1.395]
[1744583889550,0.58674484,582.81,582.4,1.395]
[1744583889753,0.58674484,582.8,582.4,1.395]
[1744583889954,0.58674484,582.79,582.4,1.395]
[1744583890155,0.58674484,582.78,582.4,1.395]
[1744583890355,0.586862,582.77,582.4,1.395]
[1744583890556,0.586862,582.76,582.4,1.395]
[1744583890855,0.586862,582.75,582.4,1.395]
[1744583891055,0.586862,582.74,582.4,1.395]
[1744583891255,0.586862,582.73,582.4,1.395]
[1744583891455,0.586862,582.72,582.4,1.395]
[1744583891655,0.586862,582.71,582.4,1.395]
[1744583891848,0.586862,582.7,582.4,1.395]
[1744583892050,0.586862,582.69,582.4,1.395]
[1744583892250,0.586862,582.68,582.4,1.395]
[1744583892451,0.586862,582.67,582.4,1.395]
[1744583892654,0.586862,582.66,582.4,1.395]
[1744583892857,0.586862,582.65,582.4,0.954]
[1744583893056,0.586862,582.64,582.4,0.954]
[1744583893355,0.586862,582.63,582.4,0.954]
[1744583893557,0.586862,582.62,582.4,0.954]
[1744583893856,0.586862,582.61,582.4,0.954]
[1744583894155,0.586862,582.6,582.4,0.954]
[1744583894356,0.586862,582.59,582.4,0.954]
[1744583894555,0.586862,582.58,582.4,0.954]
[1744583894755,0.586862,582.57,582.4,0.954]
[1744583894956,0.586862,582.56,582.4,0.954]
[1744583895152,0.586862,582.55,582.4,0.954]
[1744583895457,0.586862,582.54,582.4,0.954]
[1744583895652,0.586862,582.53,582.4,0.954]
[1744583895853,0.34299434,583.1,582.4,0.954]
[1744583896054,0.90095155,583.09,582.4,0.954]
[1744583896256,0.90095155,583.08,582.4,0.954]
[1744583896451,0.90095155,583.07,582.4,0.954]
[1744583896758,0.90095088,583.06,582.4,0.954]
[1744583896958,0.90095088,583.05,582.4,0.954]
[1744583897155,0.90095088,583.04,582.4,0.954]
[1744583897358,0.5870597,583.03,582.4,0.954]
[1744583897554,0.5870597,583.02,582.4,0.954]
[1744583897757,0.5870597,583.01,582.4,0.954]
[1744583897953,0.5870597,583.0,582.4,0.954]
[1744583898157,0.5870597,582.99,582.4,0.954]
[1744583898356,0.5870597,582.98,582.4,0.954]
[1744583898557,0.5870597,582.97,582.4,0.954]
[1744583898758,0.5870597,582.96,582.4,0.954]
[1744583899052,0.5870597,582.95,582.4,0.954]
[1744583899254,0.5870597,582.94,582.4,0.954]
[1744583899458,0.5870597,582.93,582.4,0.954]
[1744583899759,0.5870597,582.92,582.4,0.954]
[1744583899959,0.5870597,582.91,582.4,0.954]
[1744583900162,0.5870597,582.9,582.4,0.954]
[1744583900353,0.5870597,582.89,582.4,0.954]
[1744583900557,0.5870597,582.88,582.4,1.56]
[1744583900753,0.5870597,582.87,582.4,1.56]
[1744583901060,0.5870597,582.86,582.4,1.56]
[1744583901260,0.5870597,582.85,582.4,1.56]
[1744583901460,0.5870597,582.84,582.4,1.56]
[1744583901759,0.5870597,582.83,582.4,1.56]
[1744583901954,0.5870597,582.82,582.4,1.56]
[1744583902159,0.5870597,582.81,582.4,1.56]
[1744583902359,0.5870597,582.8,582.4,1.56]
[1744583902559,0.5870597,582.79,582.4,1.56]
[1744583902854,0.216,583.01,582.4,1.56]
[1744583902855,0.58702719,582.78,582.4,1.107]
[1744583903059,0.58702719,582.77,582.4,1.107]
[1744583903261,0.58702719,582.76,582.4,1.107]
[1744583903560,0.58702719,582.75,582.4,1.107]
[1744583903762,0.58702719,582.74,582.4,1.107]
[1744583904063,0.58702719,582.73,582.4,1.107]
[1744583904258,0.58702719,582.72,582.4,1.107]
[1744583904461,0.58702719,582.71,582.4,1.107]
[1744583904659,0.58702719,582.7,582.4,1.107]
[1744583904855,0.58702719,582.69,582.4,1.107]
[1744583905062,0.58702719,582.68,582.4,1.107]
[1744583905261,0.58702719,582.67,582.4,1.107]
[1744583905461,0.58702719,582.66,582.4,1.107]
[1744583905662,0.58702719,582.65,582.4,1.107]
[1744583905858,0.58702719,582.64,582.4,1.107]
[1744583906062,0.58702719,582.63,582.4,1.107]
[1744583906263,0.58702719,582.62,582.4,1.107]
[1744583906462,0.58702719,582.61,582.4,1.107]
[1744583906663,0.58702719,582.6,582.4,1.107]
[1744583906858,0.58702719,582.59,582.4,1.107]
[1744583907164,0.58702719,582.58,582.4,1.107]
[1744583907362,0.58702719,582.57,582.4,1.107]
[1744583907664,0.58702719,582.56,582.4,1.107]
[1744583907866,0.58702719,582.55,582.4,1.107]
[1744583908062,0.58702719,582.54,582.4,1.107]
[1744583908265,0.58702719,582.53,582.4,1.107]
[1744583908565,0.58702719,582.52,582.4,1.107]
[1744583908864,0.58702719,582.51,582.4,1.107]
[1744583909059,0.58702719,582.5,582.4,1.107]
[1744583909264,0.58702719,582.49,582.4,1.107]
[1744583909464,0.58702719,582.48,582.4,1.107]
[1744583909665,0.58702719,582.47,582.4,1.107]
[1744583909966,0.58702719,582.46,582.4,1.107]
[1744583910162,0.58702719,582.45,582.4,1.107]
[1744583910365,0.58702719,582.44,582.4,1.107]
[1744583910566,0.216,583.01,582.4,1.107]
[1744583910762,0.58691034,583.0,582.4,1.107]
[1744583910963,0.58691034,582.99,582.4,1.107]
[1744583911161,0.58691034,582.98,582.4,1.107]
[1744583911365,0.216,583.01,582.4,1.107]
[1744583911366,0.58691034,582.97,582.4,1.107]
[1744583911567,0.58691034,582.96,582.4,1.107]
[1744583911866,0.58691034,582.95,582.4,1.107]
[1744583912061,0.58691034,582.94,582.4,1.107]
[1744583912263,0.58691034,582.93,582.4,1.107]
[1744583912559,0.58691034,582.92,582.4,1.107]
[1744583912764,0.58691034,582.91,582.4,1.107]
[1744583913059,0.58691034,582.9,582.4,1.107]
[1744583913266,0.58691034,582.89,582.4,1.107]
[1744583913463,0.58691034,582.88,582.4,1.107]
[1744583913663,0.58691034,582.87,582.4,1.107]
[1744583913861,0.58691034,582.86,582.4,1.107]
[1744583914063,0.58691034,582.85,582.4,1.107]
[1744583914264,0.58691034,582.84,582.4,1.107]
[1744583914464,0.58691034,582.83,582.4,1.107]
[1744583914667,0.58691034,582.82,582.4,1.107]
[1744583914968,0.58691034,582.81,582.4,1.107]
[1744583915167,0.58691034,582.8,582.4,1.107]
[1744583915367,0.58691034,582.79,582.4,1.107]
[1744583915667,0.58691034,582.78,582.4,0.606]
[1744583915868,0.58691034,582.77,582.4,0.606]
[1744583916164,0.58691034,582.76,582.4,0.606]
[1744583916363,0.58691034,582.75,582.4,0.606]
[1744583916664,0.58718833,582.74,582.4,0.606]
[1744583916868,0.58718833,582.73,582.4,0.606]
[1744583917069,0.58718833,582.72,582.4,0.606]
[1744583917269,0.58718833,582.71,582.4,0.606]
[1744583917566,0.58718833,582.7,582.4,0.606]
[1744583917768,0.58718833,582.69,582.4,0.606]
[1744583917970,0.58718833,582.68,582.4,0.606]
[1744583918269,0.58718833,582.67,582.4,0.606]
[1744583918468,0.58718833,582.66,582.4,0.606]
[1744583918671,0.58718833,582.65,582.4,0.606]
[1744583918969,0.58718833,582.64,582.4,0.606]
[1744583919171,0.58718833,582.63,582.4,0.606]
[1744583919366,0.58718833,582.62,582.4,0.606]
[1744583919565,0.58718833,582.61,582.4,0.606]
[1744583919767,0.58718833,582.6,582.4,0.606]
[1744583919969,0.58718833,582.59,582.4,0.606]
[1744583920166,0.216,583.01,582.4,0.606]
[1744583920365,0.58783088,583.0,582.4,0.606]
[1744583920665,0.216,583.01,582.4,0.606]
[1744583920666,0.58783088,582.99,582.4,0.606]
[1744583920868,0.58783088,582.98,582.4,0.606]
[1744583921064,0.58783088,582.97,582.4,0.606]
[1744583921265,0.58783088,582.96,582.4,0.606]
[1744583921467,0.58783088,582.95,582.4,0.606]
[1744583921669,0.58783088,582.94,582.4,0.606]
[1744583921869,0.58783088,582.93,582.4,0.606]
[1744583922167,0.58783088,582.92,582.4,0.606]
[1744583922365,0.58783088,582.91,582.4,0.606]
[1744583922665,0.58783088,582.9,582.4,0.606]
[1744583922866,0.58783088,582.89,582.4,0.606]
[1744583923070,0.58783088,582.88,582.4,0.606]
[1744583923372,0.58783088,582.87,582.4,0.606]
[1744583923572,0.58783088,582.86,582.4,0.606]
[1744583923771,0.58783088,582.85,582.4,0.606]